Cogmind - Beta 13 @@@ ROGUE MODE // 2024.04.04 @ 19:59:01 Player: GreyJackal Result: Destroyed by G-50 Soldier with Heavy Laser Performance ------------- Evolutions (1) 500 Regions Visited (5) 1000 Robots Destroyed (68) 340 Value Destroyed (1160) 1160 Prototype IDs (24) 480 Alien Tech Used (0) 0 Bonus (361) 361 TOTAL SCORE: 3841 Bonus ------- High Alert Combat Kills 61 Aligned with FarCom 300 Cogmind --------- Core Integrity 0/400 Matter 279/300 Energy 92/100 System Corruption 5% Temperature Cool (18) Movement Core (50) Location -8/Mines Parts ------- > --- POWER (1) -------- (None) > --- PROPULSION (2) --- (None) > --- UTILITY (3) ------ Visual Processing Unit Signal Interpreter > --- WEAPON (3) ------- (None) > --- INVENTORY (5) ---- Structural Scanner Improved Terrain Scanner Targeting Computer ECM Suite Cloak of Protection Peak State ------------ > --- POWER ------------ Ion Engine > --- PROPULSION ------- Aluminum Leg > --- UTILITY ---------- Visual Processing Unit Signal Interpreter Cloak of Protection > --- WEAPON ----------- Small Laser Small Laser > --- INVENTORY -------- Improved Heat Sink Structural Scanner Improved Terrain Scanner Targeting Computer ECM Suite [Rating: 15] Favorites ----------- Power Ion Engine Engine Ion Engine Propulsion Light Treads Treads Light Treads Leg Aluminum Leg Flight Unit Improved Flight Unit Utility Visual Processing Unit Device Improved Heat Sink Processor Visual Processing Unit Protection Light Armor Plating Weapon Small Laser Energy Gun Small Laser Ballistic Gun Light Assault Rifle Launcher Grenade Launcher Build | -11 -10 -9 -9 -9 -8 ------- Run | Yrd Mat Mat Min Exi Min Slots Evolved 2 | . . 2 . . . Power . | . . . . . . Propulsion . | . . . . . . Utility 1 | . . 1 . . . Weapon 1 | . . 1 . . . Parts Attached 39 | 5 7 17 8 . 2 Power 4 | 1 . 1 2 . . Engine 4 | 1 . 1 2 . . Core . | . . . . . . Reactor . | . . . . . . Propulsion 9 | 2 . 5 2 . . Treads 6 | 2 . 4 . . . Leg 2 | . . . 2 . . Wheel . | . . . . . . Hover . | . . . . . . Flight 1 | . . 1 . . . Utility 15 | . 4 8 1 . 2 Device 7 | . 3 1 1 . 2 Storage . | . . . . . . Processor 4 | . 1 3 . . . Hackware . | . . . . . . Protection 4 | . . 4 . . . Artifact . | . . . . . . Weapon 11 | 2 3 3 3 . . Energy Gun 6 | 1 1 1 3 . . Energy Cannon . | . . . . . . Ballistic Gun 3 | 1 . 2 . . . Ballistic Cannon . | . . . . . . Launcher 2 | . 2 . . . . Special Weapon . | . . . . . . Impact Weapon . | . . . . . . Slashing Weapon . | . . . . . . Piercing Weapon . | . . . . . . Special Melee Weapon . | . . . . . . Unidentified Prototypes 1 | . . 1 . . . Parts Lost 15 | . 1 5 4 . 5 Power 3 | . . 2 . . 1 Propulsion 2 | . . . 1 . 1 Utility 4 | . 1 2 . . 1 Weapon 6 | . . 1 3 . 2 Highest Loss Streak 5 | . 1 2 2 . 5 To Critical Strikes . | . . . . . . Average Slot Usage (%) 88 | . 96 85 87 77 74 Engine 11 | . 14 6 10 11 11 Treads 15 | . 28 22 2 . . Leg 5 | . . . 15 11 9 Device 9 | . 12 2 8 11 11 Processor 17 | . 11 18 22 22 22 Protection 2 | . . 9 2 . . Energy Gun 11 | . 1 1 25 22 21 Ballistic Gun 9 | . 14 20 . . . Launcher 5 | . 12 5 . . . Naked Turns . | . . . . . . Heaviest Build 21 | 7 10 21 14 8 8 Greatest Support 40 | 40 40 40 40 10 10 Greatest Overweight (x) 2 | . . . 1 . 2 Average Overweight (x) . | . . . . . . Largest Inventory Capacity 5 | 5 5 5 5 5 5 Average Capacity 5 | 5 5 5 5 5 5 Most Carried 5 | 5 5 5 5 5 5 Average Carried 4 | 1 4 3 4 5 5 Final Capacity 5 | 5 5 5 5 5 5 Final Carried 5 | 1 5 5 5 5 5 Class Distribution -------------------- 42% | Mutant 35% | Scavenger-Mutant 12% | Scavenger-Skirmisher 3% | Tank 3% | Gunner Dominant Class ---------------- Mutant | -10/Materials Scavenger-Mutant | -9/Materials Scavenger-Mutant | -9/Mines Scavenger-Mutant | -9/Exiles Scavenger-Mutant | -8/Mines Resources | -11 -10 -9 -9 -9 -8 ----------- Run | Yrd Mat Mat Min Exi Min Matter Collected 1457 | 243 537 527 150 . . Remotely . | . . . . . . Salvage Created 1610 | . 705 535 370 . . Parts 117 | . 69 32 16 . . Haulers Intercepted 5 | . 2 3 . . . Recyclers Shooed 5 | . 2 3 . . . Parts Field Recycled . | . . . . . . Retrieved Matter . | . . . . . . Parts Self-Destructed . | . . . . . . Prevented . | . . . . . . Kills | -11 -10 -9 -9 -9 -8 ------- Run | Yrd Mat Mat Min Exi Min Combat Hostiles Destroyed 37 | . 10 10 17 . . Guns 27 | . . 10 17 . . AOE 10 | . 10 . . . . Classes Destroyed 13 | . 10 1 2 . . Worker 16 | . 15 1 . . . Builder 7 | . 7 . . . . Tunneler 1 | . 1 . . . . Hauler 5 | . 2 3 . . . Recycler 4 | . 3 1 . . . Mechanic 1 | . 1 . . . . Operator 2 | . 2 . . . . Watcher 4 | . 3 1 . . . Swarmer 12 | . 3 6 3 . . Grunt 12 | . 7 1 4 . . Duelist 1 | . . . 1 . . Sentry 3 | . . 3 . . . Assembled 9 | . . . 9 . . Best Kill Streak 9 | . 9 6 3 . . Combat Bots Only 4 | . 3 4 3 . . Max Kills in Single Turn 4 | . 4 2 1 . . Gunslinging 1 | . . 1 . . . Exploded 3 | . 3 . . . . Melee . | . . . . . . Uniques/NPCs Destroyed . | . . . . . . Combat | -11 -10 -9 -9 -9 -8 -------- Run | Yrd Mat Mat Min Exi Min Hostile Shots Fired 250 | . 41 81 101 . 27 Missed 76 | . 10 28 29 . 9 Damage Taken 2330 | . 373 722 944 . 291 Core 473 | . 69 98 179 . 127 Absorbed by Shields . | . . . . . . Core Remaining (%) 86 | 100 72 . . . . Volleys Fired 171 | . 67 43 52 . 9 Largest 3 | . 2 2 3 . 2 Hottest 145 | . 50 46 145 . 80 Shots Fired 316 | . 120 83 101 . 12 Gun 260 | . 67 80 101 . 12 Cannon . | . . . . . . Launcher 56 | . 53 3 . . . Special . | . . . . . . Kinetic 167 | . 67 80 20 . . Thermal 93 | . . . 81 . 12 Explosive 56 | . 53 3 . . . Electromagnetic . | . . . . . . Robot Hit Streak 11 | . 11 11 8 . 3 Robot Miss Streak 5 | . 5 3 4 . 2 Penetration Max . | . . . . . . Secondary Targets 6 | . . 2 4 . . Max Gunslinging Chain 1 | . . 1 1 . . Shots Hit Robots 155 | . 48 50 51 . 6 Core Hits 119 | . 65 23 28 . 3 Critical Kills . | . . . . . . Critical Parts Destroyed . | . . . . . . Critical Strikes . | . . . . . . Melee Attacks . | . . . . . . Impact . | . . . . . . Slashing . | . . . . . . Piercing . | . . . . . . Sneak Attacks . | . . . . . . Combat Hostiles . | . . . . . . Follow-up Attacks . | . . . . . . Damage Inflicted 4067 | . 2350 882 749 . 86 Guns 1824 | . 214 786 738 . 86 Cannons . | . . . . . . Explosions 2232 | . 2136 96 . . . Melee . | . . . . . . Ramming 11 | . . . 11 . . Kinetic 1223 | . 214 786 223 . . Thermal 601 | . . . 515 . 86 Explosive 2135 | . 2039 96 . . . Electromagnetic 97 | . 97 . . . . Impact . | . . . . . . Slashing . | . . . . . . Piercing . | . . . . . . Highest Corruption 5 | . . . 5 5 5 Average Corruption 5 | . . . 5 5 5 Corruption Purged . | . . . . . . Corruption Blocked . | . . . . . . Effects 14 | . . . 4 5 5 Message Errors 1 | . . . . 1 . Matter Fused 3 | . . . 1 1 1 Heat Flow Errors 5 | . . . 1 2 2 Energy Discharges 2 | . . . 1 1 . Parts Fused 1 | . . . 1 . . Data Loss (major) 1 | . . . . . 1 Misfires 1 | . . . . . 1 Overload Shots . | . . . . . . Overflow Damage 89 | . 89 . . . . Projectiles . | . . . . . . Explosions 89 | . 89 . . . . Melee . | . . . . . . Knockbacks . | . . . . . . Impact . | . . . . . . Kinetic . | . . . . . . Secondary . | . . . . . . Self-Inflicted Damage 209 | . 92 117 . . . Shots 7 | . 5 2 . . . Rammed . | . . . . . . Targets Rammed 1 | . . . 1 . . Kicked 1 | . . . 1 . . Crushed . | . . . . . . Highest Temperature 272 | . 20 14 272 242 132 Average Temperature 58 | . 8 7 83 122 44 Received Heat Transfer 780 | . 57 114 429 . 180 Effects 3 | . . . 3 . . Interference 3 | . . . 3 . . Siege Activations . | . . . . . . Robots Corrupted . | . . . . . . Combat Hostiles . | . . . . . . Parts Fried . | . . . . . . Impact Corruptions . | . . . . . . Robots Melted . | . . . . . . Combat Hostiles . | . . . . . . Parts Melted . | . . . . . . Heat Transferred 1417 | . . . 1217 . 200 Parts Sabotaged . | . . . . . . Parts Stolen . | . . . . . . Parts Stripped . | . . . . . . Power Chain Reactions . | . . . . . . Alert | -11 -10 -9 -9 -9 -8 ------- Run | Yrd Mat Mat Min Exi Min Peak Influence 681 | . 681 669 293 . . Initial 277 | . . 277 78 . . Average 277 | . 383 435 127 . . Maximum Alert Level 2 | . 2 2 1 . . Low Security (%) 40 | 100 15 . 81 . 100 Level 1 28 | . 38 36 18 . . Level 2 30 | . 45 63 . . . Level 3 . | . . . . . . Level 4 . | . . . . . . Level 5 . | . . . . . . High Security . | . . . . . . Max Security . | . . . . . . Squads Dispatched 2 | . 1 1 . . . Investigation 1 | . . 1 . . . Extermination . | . . . . . . Reinforcement 1 | . 1 . . . . Assault . | . . . . . . Garrison . | . . . . . . Intercept . | . . . . . . Searches Triggered . | . . . . . . Construction Impeded . | . . . . . . Haulers Reinforced . | . . . . . . Active Scanning Responses . | . . . . . . Cargo Convoy Interrupts . | . . . . . . Stealth | -11 -10 -9 -9 -9 -8 --------- Run | Yrd Mat Mat Min Exi Min Distress Signals 2 | . 1 1 . . . Communications Jammed . | . . . . . . Distress Signals . | . . . . . . Times Spotted 49 | . 16 12 18 . 3 Peak Tracking Total 5 | . 5 5 4 . 3 Tactical Retreats 1 | . . . 1 . . Traps | -11 -10 -9 -9 -9 -8 ------- Run | Yrd Mat Mat Min Exi Min Traps Triggered . | . . . . . . Indirectly . | . . . . . . Trap Hack Attempts . | . . . . . . Triggered . | . . . . . . Disarmed . | . . . . . . Reprogrammed . | . . . . . . Reused . | . . . . . . Traps Extracted . | . . . . . . Installed . | . . . . . . Triggered . | . . . . . . Machines | -11 -10 -9 -9 -9 -8 ---------- Run | Yrd Mat Mat Min Exi Min Machines Disabled 21 | . 16 4 1 . . Max in Single Turn 2 | . 2 2 1 . . Machines Repaired . | . . . . . . Machines Dismantled . | . . . . . . Machines Sabotaged . | . . . . . . Overloaded Fab Kills . | . . . . . . Hacking | -11 -10 -9 -9 -9 -8 --------- Run | Yrd Mat Mat Min Exi Min Machines Accessed 8 | . 4 1 1 2 . Terminals 6 | . 4 1 1 . . Fabricators . | . . . . . . Repair Stations . | . . . . . . Recycling Units . | . . . . . . Scanalyzers . | . . . . . . Garrison Access . | . . . . . . Total Hacks 26 | . 9 5 2 10 . Successful 19 | . 5 4 . 10 . Failed 7 | . 4 1 2 . . Catastrophic . | . . . . . . Database Lockouts . | . . . . . . Manual 1 | . . . . 1 . Terminals 16 | . 9 5 2 . . Fabricators . | . . . . . . Repair Stations . | . . . . . . Recycling Units . | . . . . . . Scanalyzers . | . . . . . . Garrison Access . | . . . . . . Terminal Hacks 19 | . 5 4 . 10 . Record 11 | . 2 . . 9 . Alert Level 3 | . 1 2 . . . Unreport Threat 2 | . . 2 . . . Surveillance Status 1 | . 1 . . . . Hauler Manifests 1 | . 1 . . . . Derelict Proto ID Bank 1 | . . . . 1 . Fabricator Hacks . | . . . . . . Repair Station Hacks . | . . . . . . Recycling Unit Hacks . | . . . . . . Scanalyzer . | . . . . . . Garrison Access Hacks . | . . . . . . Unauthorized Hacks . | . . . . . . Terminals . | . . . . . . Fabricators . | . . . . . . Repair Stations . | . . . . . . Recycling Units . | . . . . . . Scanalyzers . | . . . . . . Garrison Access . | . . . . . . Data Cores Recovered . | . . . . . . Used . | . . . . . . Hacking Detections 4 | . 2 1 1 . . Full Trace Events 2 | . 1 1 . . . Feedback Events . | . . . . . . Feedback Blocked . | . . . . . . Robot Schematics Acquired . | . . . . . . Robots Built . | . . . . . . Authchips . | . . . . . . Time . | . . . . . . Total Robot Build Rating . | . . . . . . Part Schematics Acquired . | . . . . . . Parts Built . | . . . . . . Authchips . | . . . . . . Time . | . . . . . . Total Part Build Rating . | . . . . . . Parts Repaired . | . . . . . . Time . | . . . . . . Parts Recycled . | . . . . . . Recycled Matter . | . . . . . . Retrieved Matter . | . . . . . . Retrieved Components . | . . . . . . Parts Scanalyzed . | . . . . . . Part Schematics Acquired . | . . . . . . Parts Damaged . | . . . . . . Bothacking | -11 -10 -9 -9 -9 -8 ------------ Run | Yrd Mat Mat Min Exi Min Used RIF Installer . | . . . . . . Robots Hacked . | . . . . . . Non-combat . | . . . . . . Combat . | . . . . . . Robot Hacks Applied . | . . . . . . Relay Couplers Released . | . . . . . . Fabnet Peak Effective % . | . . . . . . Robots Rewired . | . . . . . . Allies Hacked . | . . . . . . Hacks Repelled . | . . . . . . Allies | -11 -10 -9 -9 -9 -8 -------- Run | Yrd Mat Mat Min Exi Min Total Allies . | . . . . . . Largest Group . | . . . . . . Highest-Rated Group . | . . . . . . Highest-Rated Ally . | . . . . . . Total Orders . | . . . . . . Ally Attacks . | . . . . . . Total Damage . | . . . . . . Kills . | . . . . . . Allies Corrupted . | . . . . . . Allies Melted . | . . . . . . Intel | -11 -10 -9 -9 -9 -8 ------- Run | Yrd Mat Mat Min Exi Min Robot Analysis Total . | . . . . . . Derelict Logs Recovered 2 | . . . 2 . . Drone Launches . | . . . . . . Drone Recoveries . | . . . . . . Exploration | -11 -10 -9 -9 -9 -8 ------------- Run | Yrd Mat Mat Min Exi Min Turns Passed 2895 | 81 1028 541 764 271 210 Spaces Moved 1663 | 69 507 233 474 225 155 Core 47 | 39 . . . . 8 Treads 782 | 30 507 233 12 . . Legs 834 | . . . 462 225 147 Wheels . | . . . . . . Hover . | . . . . . . Flight . | . . . . . . Fastest Speed 50 | 50 160 160 120 120 120 Average Speed 138 | 97 160 160 126 120 121 Slowest Speed 190 | 160 160 160 190 120 150 Overloaded Moves . | . . . . . . Propulsion Burnouts . | . . . . . . Robots Hopped . | . . . . . . Cave-ins Triggered . | . . . . . . Exploration Rate (%) 46 | 4 81 31 93 45 25 Regions Visited 5 Branch Regions 3 Pre-discovered Areas 1 | . . . 1 . . Known Exits Taken 3 | . . 1 1 1 . Unknown Exits Taken 2 | 1 1 . . . . Scrap Searched 1 | . . . 1 . . Spaces Dug 5 | . 5 . . . . Terrain Destroyed 443 | . 345 98 . . . Melee . | . . . . . . Projectile . | . . . . . . AOE 443 | . 345 98 . . . Terrain Rammed . | . . . . . . Walls Destroyed . | . . . . . . Machines Disabled . | . . . . . . Actions | -11 -10 -9 -9 -9 -8 --------- Run | Yrd Mat Mat Min Exi Min Total 1964 | 83 617 319 553 226 166 Wait 30 | 4 23 . 3 . . Move 1658 | 68 506 232 473 224 155 Hop . | . . . . . . Pick Up 44 | 6 10 17 10 1 . Fast Attach . | . . . . . . Attach 20 | 5 2 8 5 . . Detach . | . . . . . . Swap 19 | . 5 9 3 . 2 Drop 21 | . 4 10 6 1 . Fire 171 | . 67 43 52 . 9 Melee . | . . . . . . Ram . | . . . . . . Kick 1 | . . . 1 . . Crush . | . . . . . . Escape Stasis . | . . . . . . Rewire . | . . . . . . Trap . | . . . . . . Miscellaneous . | . . . . . . Route ------- -11/Scrapyard -10/Materials (discovered 3 exits: *Mat x3) -9/Materials (discovered 2 exits: *Mat / *Min) -9/Mines (discovered 3 exits: *Mat x2 / *Exi) -9/Exiles -8/Mines History --------- Turn | Location | Event 14 | -11/Scrapyard | Discovered new exit (range 16) 82 | -11/Scrapyard | Entered Materials 310 | -10/Materials | Build established: Mutant 341 | -10/Materials | Discovered new exit (range 8) 745 | -10/Materials | Discovered new exit (range 12) 941 | -10/Materials | Discovered new exit (range 8) 1110 | -10/Materials | Entered another Materials area 1110 | -9/Materials | Evolved 2 slots: Utility x1, Weapon x1 1395 | -9/Materials | Discovered new exit (range 17) 1635 | -9/Materials | Discovered new exit (range 9) 1650 | -9/Materials | Identified exit to Mines 1651 | -9/Materials | Entered Mines 1652 | -9/Mines | Assembled infested the area 1702 | -9/Mines | Core integrity fell below 50% 1802 | -9/Mines | Build established: Scavenger-Mutant 1963 | -9/Mines | Learned Materials stockpile data 2049 | -9/Mines | Discovered new exit (range 7) 2059 | -9/Mines | Identified exit to Materials 2149 | -9/Mines | Build established: Scavenger-Skirmisher 2296 | -9/Mines | Discovered exit to Materials (range 8) 2410 | -9/Mines | Deemed a non-threat by the Exiles lab entrance 2410 | -9/Mines | Discovered new exit (range 5) 2414 | -9/Mines | Identified exit to Exiles 2415 | -9/Mines | Entered Exiles 2445 | -9/Exiles | Met 8R-AWN 2466 | -9/Exiles | Met EX-HEX 2505 | -9/Exiles | Met EX-BIN 2510 | -9/Exiles | Build established: Scavenger-Mutant 2533 | -9/Exiles | Aligned with FarCom system 2534 | -9/Exiles | Given EX-Vault access code 2562 | -9/Exiles | Opened EX-Vault 2568 | -9/Exiles | Found Cloak of Protection 2595 | -9/Exiles | Warned to stay clear of 0b10 Research branches 2670 | -9/Exiles | Discovered new exit (range 14) 2685 | -9/Exiles | Identified exit to Mines 2686 | -9/Exiles | Left Exiles lab with Cloak of Protection 2686 | -9/Exiles | Entered Mines 2886 | -8/Mines | Core integrity fell below 20% 2896 | -8/Mines | Destroyed by G-50 Soldier with Heavy Laser Last Messages --------------- Receiving FarCom transmissions... K-01 Serf cleans the Core Extractor. K-01 Serf collects debris. System corrupted: Substantial component data lost. K-01 Serf collects debris. System corrupted: Heat flow error (+157). K-01 Serf collects debris. System corrupted: Heat flow error (+168). K-01 Serf collects debris. System corrupted: Matter fused (-7). Aluminum Leg destroyed. System corrupted: FCS attempts to trigger Sml. Laser. System corrupted: Sml. Laser misfires. Sml. Laser destroyed. Critical hit (Burn: +37). Imp. Heat Sink destroyed. Ion Engine destroyed. Sml. Laser destroyed. Map ----- +----------------------------------------------------+ | ??# #??????# #????# #?? | | ??# ?????? ????## #?? | | ??# ##?????# #?????# #### #?? | | ??# #??????# #?????# #??# #?? | | ?? ??????# #????? #??# #?? | | ?? ??????# #????####??# #?? | | ?? ?? ?????# ???????????# #?? | | ? ?? ?????? ???????????# #?? | | ? ????????? ???????????# #?? | | ?# ????????? ???????????# #?? | | ?## ????????? ???????????# #?? | | ????????????? ???????????# #?? | | ????????????? ???????????# #?? | | ????????????? ??????###### #?? | | ????????????????????# #?? | | ????????????????????#""" ##?? | | ????????????????????#""" #??? | | ????????????????????#""" g #??? | | ????????????????????# g #??? | | ????????????????????#""" g#??? | | ????????????????????#""" #??? | | ????????????????????#""" #??? | | ????????????????????# #??? | | ????????????????????##### ##??? | | ????????????????????????# #???? | | ??????????????????????###@#???? | | ?????????????????????## ##??? | | ????????????????????## #??? | | ????????????????????# #??? | | ????????????????????# ##??? | | ????????????????????# #???? | | ????????????????????## #???? | | ?????????????????????## ##???? | | ??????????????????????####????? | | ??????????????????????????????? | | ??????????????????????????????? | | ??????????????????????????????? | | ??????????????????????????????? | | ??????????????????????????????? | | ??????????????????????????????? | | ??????????????????????????????? | | ??????????????????????????????? | | ??????????????????????????????? | | ??????????????????????????????? | | ??????????????????????????????? | | ??????????????????????????????? | | ??????????????????????????????? | | ??????????????????????????????? | | ??????????????????????????????? | | ??????????????????????????????? | +----------------------------------------------------+ Best States ------------- Heat Dissipation 42 Energy Generation 10 Energy Capacity 250 Matter Stores 300 Matter Capacity 300 Sight Range 18 Terrain Scan Density 10 ECM Strength 1 Armor Coverage 225 Evasion (%) 55 Targeting Accuracy 6 Recoil Reduction 2 Item Schematics ----------------- None Robot Schematics ------------------ None Fabricated ------------ Nothing Alien Tech Used ----------------- None Achievements -------------- Everything Is Under Control Hey, That's Mine! I Survived The Infestation Remodeling Challenges ------------ None Game ------ Seed LongswordAlloyPerforator Manual? 0 Play Time 00:29:16 Cumulative 5.6 hours Start 2024.04.04 @ 19:30:08 End 2024.04.04 @ 19:59:01 Sessions 1 Manual Loads 0 Difficulty Rogue Special Mode None Game No. 10 Rogue 10 Adventurer 0 Explorer 0 Win Type - Total 0 Types 0/0/0/0/0/0/0/0/0 Lore% 13 Gallery% 12 Achievement% 13 Wizard Run 0 Options --------- Layout 1 ASCII 0 Keyboard 0 Movement Mouse Keybinds 0 Fullscreen 1 Font 32/SmallcapsGlow Map View 50x35 Zoom Use 0% Tactical HUD 0 Map Filters NONE Filters NONE Steam 1 RUN: f855fb50-8f4c-40e3-a185-3f434d266b7b